bitfinex-derivatives/quotes_SOLF0:USTF0_20260129
["timestamp","ask_amount","ask_price","bid_price","bid_amount"]
[1769657141940,7.3291,122.99,122.91,56.60700627]
[1769657142246,55.18712156,122.99,122.91,56.60700627]
[1769657144743,324.68,123.01,122.94,56.60700627]
[1769657146450,332.0078,123.01,122.94,63.93890627]
[1769657148649,61.27395988,123.0,122.92,63.93960627]
[1769657148856,61.27369014,122.99,122.92,56.60700627]
[1769657149049,55.18712156,122.99,122.92,56.60700627]
[1769657149752,61.27551344,122.98,122.92,56.60700627]
[1769657149954,55.18712156,122.98,122.92,56.60700627]
[1769657150344,62.51672156,122.98,122.92,56.60700627]
[1769657150746,55.18712156,122.98,122.9,56.60700627]
[1769657151052,62.00009966,122.95,122.85,56.60700627]
[1769657151252,61.27453658,122.94,122.85,56.60700627]
[1769657151444,55.18712156,122.94,122.87,7.336]
[1769657152249,55.18712156,122.94,122.88,7.3355]
[1769657152549,268.08712156,122.96,122.88,63.94250627]
[1769657152751,61.26759565,122.95,122.88,63.94250627]
[1769657152950,55.18712156,122.95,122.88,63.94250627]
[1769657153354,62.51862156,122.95,122.88,63.94250627]
[1769657154453,55.18712156,122.93,122.86,56.60700627]
[1769657155049,62.52022156,122.93,122.86,56.60700627]
[1769657155250,55.18712156,122.93,122.83,57.34824656]
[1769657156255,62.52002156,122.93,122.85,64.68534656]
[1769657156453,55.7776425,122.95,122.86,57.34824656]
[1769657157147,63.1094425,122.95,122.88,7.3354]
[1769657157353,7.3318,122.95,122.89,57.34824656]
[1769657158357,7.3309,122.96,122.89,64.68314656]
[1769657161252,286.0376425,122.97,122.9,64.68254656]
[1769657161857,230.26,122.97,122.9,57.34824656]
[1769657162953,237.5902,122.97,122.91,7.3337]
[1769657163157,237.5902,122.97,122.91,64.68194656]
[1769657163158,230.26,122.97,122.91,64.68194656]
[1769657164359,7.3296,122.98,122.91,64.68194656]
[1769657165156,7.3296,122.98,122.92,7.3331]
[1769657165661,7.3287,123.0,122.93,64.68074656]
[1769657166357,380.6576425,123.01,122.94,57.34824656]
[1769657166657,55.7776425,123.04,122.95,57.34824656]
[1769657167156,6.09023728,123.03,122.95,57.34824656]
[1769657167559,55.7776425,123.04,122.95,57.34824656]
[1769657167760,6.091658,123.03,122.95,57.34824656]
[1769657168356,13.418258,123.03,122.97,7.33]
[1769657168554,7.3266,123.03,122.97,7.33]
[1769657168962,7.3266,123.03,122.96,57.34824656]
[1769657170164,55.7776425,123.04,122.97,64.67824656]
[1769657171462,63.1036425,123.04,122.97,64.67824656]
[1769657173154,55.7776425,123.02,122.94,57.34824656]
[1769657173359,6.09312952,123.01,122.94,57.34824656]
[1769657173560,61.87077202,123.01,122.94,57.34824656]
[1769657173751,55.7776425,123.04,122.94,64.16122466]
[1769657173956,6.09327542,123.03,122.95,57.34824656]
[1769657174464,55.7776425,123.04,122.95,64.67904656]
[1769657174664,61.87537471,123.03,122.95,64.67904656]
[1769657174866,55.7776425,123.03,122.95,64.67904656]
[1769657175358,7.3273,123.02,122.95,64.67904656]
[1769657177564,63.1054425,123.01,122.95,57.34824656]
[1769657177765,61.87568318,123.0,122.9,57.34824656]
[1769657177966,61.8753686,122.99,122.9,57.34824656]
[1769657178266,55.7776425,122.99,122.9,57.34824656]
[1769657178467,55.7776425,123.01,122.92,57.34824656]
[1769657178764,6.10049475,123.0,122.92,57.34824656]
[1769657178956,55.7776425,123.01,122.92,57.34824656]
[1769657180366,6.10165353,123.0,122.94,7.3319]
[1769657180764,7.3282,123.01,122.94,64.68014656]
[1769657183569,324.78,123.02,122.96,57.34824656]
[1769657184164,387.8848425,123.02,122.96,64.67894656]
[1769657184472,68.69953199,123.01,122.92,57.34824656]
[1769657184674,55.7776425,122.99,122.92,57.34824656]
[1769657185367,63.1067425,122.99,122.92,64.68134656]
[1769657188868,55.7776425,122.99,122.93,7.3325]
[1769657190777,7.3284,123.0,122.93,60.37252151]
[1769657194476,60.96862581,123.0,122.93,60.37252151]
[1769657194974,7.329,122.99,122.93,60.37252151]
[1769657197378,60.96862581,123.0,122.93,60.37252151]
[1769657197872,7.3276,123.02,122.94,53.04002151]
[1769657199376,7.3276,123.02,122.96,7.3307]
[1769657199675,7.3276,123.02,122.96,60.37072151]
[1769657200283,60.96682581,123.03,122.96,60.37072151]
[1769657200470,6.06751239,123.02,122.96,60.37072151]
[1769657201384,7.326,123.04,122.97,53.04002151]
[1769657201578,6.07374451,123.03,122.97,53.04002151]
[1769657202281,6.07374451,123.03,122.98,7.3295]
[1769657207690,8.61601032,123.03,122.98,7.3295]
[1769657208490,6.07374451,123.02,122.98,7.3295]
[1769657209588,6.07374451,123.02,122.97,53.04002151]
[1769657211290,15.94331032,123.02,122.97,53.04002151]
[1769657211587,6.07374451,123.01,122.97,53.04002151]
[1769657214492,7.3266,123.03,122.97,62.91228732]
[1769657214689,6.08052292,123.02,122.97,62.91228732]
[1769657217292,7.35971492,123.05,123.0,64.32707658]
[1769657217486,52.79318278,123.08,123.0,59.54144239]
[1769657217790,55.33544859,123.08,123.0,59.54144239]
[1769657218184,7.3242,123.07,123.01,7.3277]
[1769657218385,7.3242,123.07,123.01,64.32687658]
[1769657218586,52.79318278,123.08,123.02,2.54226581]
[1769657218882,52.79318278,123.08,123.01,56.99917658]
[1769657219194,55.33544859,123.08,123.01,56.99917658]
[1769657220292,7.3242,123.07,123.01,64.32687658]
[1769657220791,7.3242,123.07,122.98,114.0137]
[1769657220792,55.33544859,123.05,122.98,56.99917658]
[1769657221193,9.86826581,123.04,122.98,56.99917658]
[1769657221685,9.86826581,123.04,122.98,64.32867658]
[1769657221891,9.86906581,123.03,122.98,56.99917658]
[1769657222085,62.66224859,123.03,122.95,56.99917658]
[1769657222391,2.54226581,123.01,122.95,56.99917658]
[1769657222891,2.54226581,123.01,122.95,64.33047658]
[1769657223092,7.3274,123.02,122.95,64.33047658]
[1769657223293,2.54226581,123.01,122.95,64.33047658]
[1769657224692,2.54226581,123.03,122.97,56.99917658]
[1769657225092,2.54226581,123.02,122.97,56.99917658]
[1769657225283,55.33544859,123.0,122.93,59.54144239]
[1769657225483,2.54226581,122.99,122.93,56.99917658]
[1769657225985,2.54226581,122.99,122.94,7.3319]
[1769657226291,52.79318278,123.0,122.94,64.33107658]
[1769657226292,55.33544859,123.0,122.94,64.33107658]
[1769657226888,55.33544859,123.0,122.93,2.54226581]
[1769657226889,2.54226581,123.0,122.96,56.99917658]
[1769657227196,2.54226581,123.02,122.96,56.99917658]
[1769657227696,9.86926581,123.03,122.96,56.99917658]
[1769657228381,9.86926581,123.03,122.96,64.32987658]
[1769657228582,2.54226581,123.04,122.98,56.99917658]
[1769657228781,9.86806581,123.05,122.98,56.99917658]
[1769657229292,13.30169612,123.04,122.98,64.32857658]
[1769657229489,9.86826581,123.04,122.98,64.32857658]
[1769657230192,9.86826581,123.04,122.98,56.99917658]
[1769657230394,2.54226581,123.03,122.98,56.99917658]
[1769657230896,8.51836731,123.03,122.98,56.99917658]
[1769657231094,2.54226581,123.03,122.98,56.99917658]
[1769657231295,9.86826581,123.04,122.98,56.99917658]
[1769657231691,5.97700695,123.03,122.98,56.99917658]
[1769657231996,9.86826581,123.04,122.98,56.99917658]
[1769657232195,5.97802417,123.03,122.98,56.99917658]
[1769657233699,15.84688998,123.03,122.98,56.99917658]
[1769657233901,9.86886581,123.03,122.98,56.99917658]
[1769657235891,7.3266,123.03,122.98,56.99917658]
[1769657238004,9.86806581,123.05,122.98,59.54144239]
[1769657238207,5.9783049,123.04,122.98,59.54144239]
[1769657239404,5.9783049,123.04,122.99,64.32787658]
[1769657242308,5.9783049,123.03,122.99,64.32787658]
[1769657242503,9.86806581,123.05,122.99,64.32787658]
[1769657242702,5.9822656,123.04,122.99,64.32787658]
[1769657242901,5.9822656,123.03,122.99,64.32787658]
[1769657243102,9.86806581,123.05,122.99,64.32787658]
[1769657243402,5.98233718,123.04,122.99,64.32787658]
[1769657243600,5.98233718,123.03,122.99,64.32787658]
[1769657243799,9.86806581,123.05,122.99,64.32787658]
[1769657244000,5.98539486,123.04,122.99,64.32787658]
[1769657244195,5.98539486,123.03,122.99,64.32787658]
[1769657244395,9.86806581,123.05,122.99,64.32787658]
[1769657244607,5.98562974,123.04,122.99,64.32787658]
[1769657244804,5.98562974,123.03,122.99,64.32787658]
[1769657245003,2.54226581,123.06,122.99,54.32434274]
[1769657245202,2.54226581,123.05,122.99,54.32434274]
[1769657245409,2.54226581,123.04,122.99,54.32434274]
[1769657245902,2.54226581,123.04,122.99,61.65324274]
[1769657246104,2.54226581,123.03,122.99,54.32434274]
[1769657246801,2.54226581,123.04,122.99,54.32434274]
[1769657247305,9.86826581,123.04,122.99,54.32434274]
[1769657248003,2.54226581,123.02,122.97,54.32434274]
[1769657252506,9.86946581,123.02,122.97,54.32434274]
[1769657257202,55.44751336,123.01,122.96,7.3302]
[1769657257509,2.54226581,123.0,122.95,53.29406853]
[1769657258297,2.54226581,122.99,122.95,53.29406853]
[1769657260001,9.87076581,123.0,122.95,53.29406853]
[1769657261615,9.87210322,123.0,122.95,53.29406853]
[1769657262409,7.3285,123.0,122.95,53.29406853]
[1769657263107,9.87210322,123.0,122.95,53.29406853]
[1769657264804,60.23294755,123.02,122.95,53.29406853]
[1769657265104,62.77655077,123.02,122.95,55.83767175]
[1769657266214,2.54360322,123.01,122.95,53.29406853]
[1769657266405,2.54360322,123.01,122.96,60.62466853]
[1769657269413,60.23174755,123.04,122.98,53.29406853]
[1769657269611,62.77535077,123.04,122.98,53.29406853]
[1769657269912,2.54360322,123.03,122.98,53.29406853]
[1769657270115,2.54360322,123.02,122.98,53.29406853]
[1769657271319,9.87080322,123.02,122.98,53.29406853]
[1769657274812,7.3272,123.02,122.98,53.29406853]
[1769657275420,60.23164755,123.04,122.98,60.62366853]
[1769657275717,62.77525077,123.04,122.98,60.62366853]
[1769657279422,70.29677815,123.04,122.98,60.62366853]
[1769657281532,14.84792738,123.04,122.98,63.16727175]
[1769657282022,70.73331928,123.04,122.98,63.16727175]
[1769657282219,73.2769225,123.04,122.98,60.62366853]
[1769657282620,70.73331928,123.04,122.98,60.62366853]
[1769657283119,70.73331928,123.04,122.94,114.0479]
[1769657283120,14.84692738,123.05,122.99,60.83722844]
[1769657283320,7.52152738,123.07,123.01,53.50832844]
[1769657283519,63.40691928,123.08,123.01,53.50832844]
[1769657283721,65.9505225,123.08,123.01,53.50832844]
[1769657283923,55.8853919,123.08,123.03,2.54360322]
[1769657284125,70.73041928,123.09,123.03,53.50832844]
[1769657284424,70.73041928,123.09,123.03,50.96472522]
[1769657284928,14.83316542,123.09,123.03,53.50832844]
[1769657285225,14.83316542,123.09,123.03,50.96472522]
[1769657285226,73.26216054,123.09,123.03,50.96472522]
[1769657286330,65.75249512,123.09,123.03,50.96472522]
[1769657286626,65.75249512,123.09,123.03,53.50832844]
[1769657286928,63.2088919,123.09,123.03,53.50832844]
[1769657288125,65.75249512,123.09,123.03,50.96472522]
[1769657288427,65.75249512,123.09,123.03,60.83492844]
[1769657288928,65.75249512,123.09,123.03,58.29132522]
[1769657290033,63.2088919,123.09,123.03,58.29132522]
[1769657290337,65.75289512,123.08,123.01,58.29212522]
[1769657290529,2.54360322,123.07,123.01,58.29212522]
[1769657291232,9.86780322,123.07,123.01,58.29212522]
[1769657291432,65.75319512,123.07,123.01,58.29212522]
[1769657294435,65.75319512,123.07,123.0,2.54360322]
[1769657294640,65.75319512,123.07,122.89,24.46]
[1769657294641,58.42899512,122.99,122.89,24.46]
[1769657294940,58.42899512,122.98,122.91,2.54360322]
[1769657295141,58.42899512,122.98,122.86,24.46]
[1769657295142,58.42899512,123.0,122.92,2.54360322]
[1769657295437,58.42899512,123.0,122.93,2.54360322]
[1769657295737,9.87320322,122.98,122.9,2.54360322]
[1769657296040,2.54360322,122.97,122.89,7.3344]
[1769657296434,7.3308,122.96,122.9,50.96472522]
[1769657297839,7.3315,122.95,122.91,50.96472522]
[1769657298533,9.87430322,122.97,122.91,50.96472522]
[1769657299443,2.54360322,122.97,122.91,375.66472522]
[1769657300031,58.42899512,122.97,122.91,50.96472522]
[1769657300435,7.3305,122.97,122.91,50.96472522]
[1769657301140,9.87410322,122.97,122.91,50.96472522]
[1769657309244,7.3294,122.99,122.91,50.96472522]
[1769657309439,51.96606116,123.0,122.91,50.96472522]
[1769657310144,2.54360322,122.98,122.91,50.96472522]
[1769657310349,9.87320322,122.98,122.91,58.29832522]
[1769657310847,9.87320322,122.98,122.93,53.82523817]
[1769657311741,9.87420322,122.97,122.94,324.82]
[1769657313447,7.3308,122.96,122.94,324.82]
[1769657314942,7.3308,122.96,122.93,53.82523817]
[1769657315250,9.87440322,122.96,122.92,287.98]
[1769657316152,7.3308,122.96,122.92,287.98]
[1769657316345,7.3315,122.95,122.92,324.82]
[1769657317251,7.3315,122.95,122.92,378.43221838]
[1769657322557,7.3315,122.95,122.92,53.61221838]
[1769657326552,49.42245794,122.97,122.92,53.61221838]
[1769657327360,7.3315,122.95,122.92,378.45221838]
[1769657327560,51.9671436,122.95,122.89,2.54468566]
[1769657327761,51.9671436,122.95,122.89,376.42196943]
[1769657328157,7.3326,122.93,122.9,51.58196943]
[1769657328559,163.45035794,122.97,122.9,54.12665509]
[1769657328760,165.9950436,122.97,122.91,51.40987617]
[1769657328961,7.3319,122.95,122.91,53.95456183]
[1769657329160,7.3319,122.95,122.91,51.40987617]
[1769657329360,7.3319,122.95,122.91,376.26987617]
[1769657329663,7.3322,122.94,122.91,376.26987617]
[1769657338670,114.0188,122.98,122.91,51.40987617]
[1769657338671,7.12538671,122.98,122.91,51.40987617]
[1769657338969,212.14327551,123.11,122.96,2.54468566]
[1769657338970,188.12385499,123.03,122.96,2.54468566]
[1769657339575,7.3284,123.0,122.96,293.14468566]
[1769657340478,74.15375499,122.99,122.93,2.54468566]
[1769657340684,71.60906933,122.98,122.93,324.88]
[1769657340975,78.93926933,122.98,122.93,327.42468566]
[1769657342676,78.93926933,122.98,122.93,324.88]
[1769657342976,78.93926933,122.98,122.93,327.42468566]
[1769657344374,71.60906933,122.98,122.93,327.42468566]
[1769657344581,7.3302,122.97,122.93,324.88]
[1769657345881,7.3302,122.97,122.93,327.42468566]
[1769657348983,7.3302,122.97,122.93,2.54468566]
[1769657349979,7.3302,122.97,122.91,324.84]
[1769657350181,7.3302,122.97,122.92,2.54468566]
[1769657352086,71.60906933,123.02,122.96,2.54468566]
[1769657352282,71.60906933,123.02,122.97,2.54468566]
[1769657352477,7.3284,123.0,122.96,2.54468566]
[1769657353085,7.3284,123.0,122.95,2.54468566]
[1769657354084,7.329,122.99,122.94,324.82]
[1769657354277,74.15375499,123.0,122.93,327.36468566]
[1769657355082,71.60906933,123.0,122.93,324.82]
[1769657355387,7.3296,122.98,122.92,2.54468566]
[1769657356888,7.3296,122.98,122.93,2.54468566]
[1769657358786,71.60906933,123.0,122.93,2.54468566]
[1769657360390,71.60906933,123.0,122.91,7.3332]
[1769657360391,7.3297,122.98,122.91,7.3332]
[1769657360585,7.3297,122.98,122.92,2.54468566]
[1769657361589,7.3302,122.97,122.92,2.54468566]
[1769657362690,7.3308,122.96,122.9,2.54468566]
[1769657362993,74.15375499,122.94,122.87,2.54468566]
[1769657363885,2.54468566,122.92,122.81,124.31350418]
[1769657364088,2.54468566,122.92,122.78,114.193]
[1769657364089,74.15375499,122.89,122.8,24.73080537]
[1769657364283,74.15375499,122.89,122.81,2.54468566]
[1769657364484,74.15375499,122.89,122.82,2.54468566]
[1769657365190,71.60906933,122.89,122.81,7.3392]
[1769657365392,71.60906933,122.89,122.82,2.54468566]
[1769657366094,71.60906933,122.89,122.83,2.54468566]
[1769657366890,78.94406933,122.89,122.83,2.54468566]
[1769657367193,81.48875499,122.89,122.82,2.54468566]
[1769657368193,81.48875499,122.89,122.83,2.54468566]
[1769657368984,78.94406933,122.89,122.83,2.54468566]
[1769657369189,81.48875499,122.89,122.82,2.54468566]
[1769657370494,81.48875499,122.89,122.82,327.44468566]
[1769657371497,71.60906933,122.89,122.83,2.54468566]
[1769657372388,71.60906933,122.89,122.82,334.78358566]
[1769657372997,71.60906933,122.89,122.82,332.2389]
[1769657373296,71.60906933,122.89,122.83,2.54468566]
[1769657373695,81.48805499,122.9,122.83,2.54468566]
[1769657374194,71.60906933,122.9,122.84,2.54468566]
[1769657375099,78.94346933,122.9,122.84,2.54468566]
[1769657376598,81.48815499,122.9,122.84,2.54468566]
[1769657378091,78.94346933,122.9,122.84,2.54468566]
[1769657378291,71.60906933,122.9,122.84,2.54468566]
[1769657380500,81.48815499,122.9,122.84,2.54468566]
[1769657383102,2.54468566,122.89,122.83,334.86298566]
[1769657383701,74.15652572,122.89,122.83,334.86575639]
[1769657384000,74.15652572,122.89,122.83,332.3183]
[1769657384389,74.15652572,122.89,122.83,332.3383]
[1769657384594,74.15652572,122.89,122.83,334.88575639]
[1769657385600,78.94406933,122.89,122.81,7.3391]
[1769657385801,74.15652572,122.87,122.82,316.24]
[1769657389302,71.60906933,122.87,122.81,2.54745639]
[1769657390294,71.60906933,122.87,122.81,9.88705639]
[1769657393306,71.60906933,122.87,122.82,2.54745639]
[1769657393805,71.60906933,122.9,122.84,2.54745639]
[1769657394108,74.15652572,122.89,122.83,7.3384]
[1769657395409,81.49152572,122.89,122.83,7.3384]
[1769657396102,74.15652572,122.89,122.83,7.3384]
[1769657399408,74.15652572,122.87,122.81,325.04]
[1769657399608,71.60906933,122.87,122.8,2.54745639]
[1769657399810,74.15652572,122.86,122.8,327.58745639]
[1769657400310,74.15652572,122.84,122.75,126.10063504]
[1769657400608,74.15652572,122.83,122.76,24.83670869]
[1769657400908,74.15652572,122.83,122.76,352.42416508]
[1769657401109,74.15652572,122.83,122.77,2.54745639]
[1769657401310,81.49512572,122.83,122.77,2.54745639]
[1769657401802,71.60906933,122.83,122.78,2.54745639]
[1769657402004,71.60906933,122.87,122.81,2.54745639]
[1769657402208,71.60906933,122.87,122.82,2.54745639]
[1769657402409,71.60906933,122.87,122.81,2.54745639]
[1769657403311,71.60906933,122.87,122.82,2.54745639]
[1769657403515,74.15652572,122.89,122.83,2.54745639]
[1769657403717,71.60906933,122.89,122.83,2.54745639]
[1769657404009,74.15652572,122.89,122.82,327.60745639]
[1769657404815,71.60906933,122.87,122.81,327.60745639]
[1769657406215,71.60906933,122.87,122.82,2.54745639]
[1769657407011,71.60906933,122.89,122.84,2.54745639]
[1769657407212,74.15652572,122.89,122.83,2.54745639]
[1769657407411,74.15652572,122.89,122.78,107.14335639]
[1769657407412,74.15652572,122.88,122.82,2.54745639]
[1769657407809,71.60906933,122.88,122.82,2.54745639]
[1769657409409,71.60906933,122.88,122.79,2.54745639]
[1769657409614,114.1059,122.89,122.78,2.54745639]
[1769657409615,74.15652572,122.84,122.78,2.54745639]
[1769657409919,71.60906933,122.84,122.78,2.54745639]
[1769657410115,74.15652572,122.83,122.77,2.54745639]
[1769657410419,74.15652572,122.83,122.76,2.54745639]
[1769657410817,74.15652572,122.83,122.76,9.89015639]
[1769657411319,74.15652572,122.83,122.77,2.54745639]
[1769657412009,71.60906933,122.83,122.79,2.54745639]
[1769657412208,71.60906933,122.85,122.76,114.2171]
[1769657412413,71.60906933,122.85,122.8,2.54745639]
[1769657414518,74.15652572,122.85,122.79,2.54745639]
[1769657414720,74.15652572,122.85,122.78,327.64745639]
[1769657414921,74.15652572,122.85,122.79,2.54745639]
[1769657415722,74.15652572,122.85,122.78,327.64745639]
[1769657416219,71.60906933,122.85,122.79,9.88825639]
[1769657416623,74.15652572,122.85,122.79,7.3408]
[1769657418128,74.15652572,122.85,122.79,9.88825639]
[1769657418625,74.15652572,122.85,122.79,334.98825639]
[1769657420826,74.15652572,122.85,122.79,332.4408]
[1769657422222,2.54745639,122.86,122.79,441.83765639]
[1769657422430,74.15652572,122.87,122.81,2.54745639]
[1769657422825,74.15652572,122.87,122.8,2.54745639]
[1769657424229,74.15652572,122.87,122.81,2.54745639]
[1769657424428,74.15652572,122.87,122.81,9.88705639]
[1769657424827,71.60906933,122.87,122.83,2.54745639]
[1769657425127,71.60906933,122.89,122.83,2.54745639]
[1769657425431,74.15652572,122.89,122.83,2.54745639]
[1769657425630,74.15652572,122.87,122.8,114.1804]
[1769657425927,7.3343,122.9,122.79,325.12]
[1769657425928,2.54745639,122.84,122.79,325.12]
[1769657426129,74.15652572,122.84,122.79,325.12]
[1769657426831,74.15652572,122.83,122.79,7.3407]
[1769657427329,71.60906933,122.83,122.79,7.3407]
[1769657427725,74.15652572,122.83,122.79,7.3407]
[1769657428427,74.15652572,122.85,122.8,7.3401]
[1769657429332,2.54745639,122.84,122.8,7.3401]
[1769657430530,74.15652572,122.85,122.78,327.66745639]
[1769657431128,2.54745639,122.84,122.78,327.66745639]
[1769657431428,2.54745639,122.84,122.8,7.34]
[1769657437332,7.51543876,122.88,122.8,2.54745639]
[1769657437634,2.54745639,122.87,122.81,2.54745639]
[1769657438441,7.51543876,122.9,122.81,2.54745639]
[1769657438736,2.54745639,122.88,122.81,2.54745639]
[1769657439428,73.18149048,122.88,122.81,2.54745639]
[1769657439626,70.63409048,122.84,122.79,114.189]
[1769657439933,73.18149048,122.84,122.78,114.1985]
[1769657440135,73.18149048,122.84,122.77,116.75525639]
[1769657440830,2.54745639,122.81,122.75,14.42109143]
[1769657441028,2.54745639,122.81,122.76,325.12]
[1769657441234,2.54745639,122.81,122.76,332.4621]
[1769657442424,2.54745639,122.79,122.75,11.87363504]
[1769657442731,5.639e-05,122.76,122.74,7.3434]
[1769657443036,5.639e-05,122.76,122.72,114.2487]
[1769657444124,5.639e-05,122.76,122.71,24.01215548]
[1769657444335,5.639e-05,122.76,122.72,325.14]
[1769657444523,5.639e-05,122.76,122.7,228.5514]
[1769657444728,5.639e-05,122.76,122.72,7.3448]
[1769657445334,70.63403409,122.79,122.72,7.3448]
[1769657445533,2.55277962,122.76,122.72,332.5048]
[1769657447430,73.18681371,122.76,122.7,332.526]
[1769657448125,73.18681371,122.75,122.7,7.346]
[1769657448326,70.63403409,122.75,122.71,7.3456]
[1769657448530,2.55277962,122.76,122.71,7.3456]
[1769657448939,73.18681371,122.76,122.71,7.3456]
[1769657449133,70.63403409,122.76,122.72,7.345]
[1769657449437,2.55277962,122.77,122.72,7.345]
[1769657449646,73.18681371,122.77,122.72,7.345]
[1769657450541,2.55277962,122.77,122.73,7.3444]
[1769657450740,2.55277962,122.78,122.73,7.3444]
[1769657451243,73.18681371,122.79,122.74,7.3439]
[1769657451752,2.55277962,122.78,122.74,7.3439]
[1769657452240,2.55277962,122.78,122.72,9.89737962]
[1769657452442,73.18681371,122.78,122.72,7.3446]
[1769657452644,2.55277962,122.77,122.72,7.3446]
[1769657455845,73.18681371,122.78,122.72,9.89737962]
[1769657456243,2.55277962,122.77,122.72,7.3446]
[1769657457742,73.18681371,122.78,122.72,7.3446]
[1769657460249,73.18681371,122.78,122.72,9.89737962]
[1769657461940,70.63403409,122.78,122.73,2.55277962]
[1769657462144,70.63403409,122.81,122.75,2.55277962]
[1769657462345,2.55277962,122.8,122.71,439.5421]
[1769657462646,73.18681371,122.79,122.74,7.3439]
[1769657462954,73.18681371,122.79,122.73,2.55277962]
[1769657463143,70.63403409,122.79,122.74,2.55277962]
[1769657463948,70.63403409,122.79,122.74,9.89667962]
[1769657464250,70.63403409,122.81,122.75,2.55277962]
[1769657464452,70.63403409,122.81,122.76,9.89537962]
[1769657464847,70.63403409,122.81,122.77,2.55277962]
[1769657465747,70.63403409,122.81,122.76,2.55277962]
[1769657465951,70.63403409,122.81,122.75,9.89607962]
[1769657469756,70.63403409,122.81,122.75,2.55277962]
[1769657470154,73.18681371,122.81,122.75,2.55277962]
[1769657470853,114.1399,122.85,122.71,9.89807962]
[1769657470854,69.35764428,122.77,122.71,9.89807962]
[1769657471048,69.35764428,122.77,122.71,2.55277962]
[1769657472352,69.35764428,122.77,122.72,7.345]
[1769657473057,2.55277962,122.79,122.73,2.55277962]
[1769657473355,69.35764428,122.8,122.75,2.55277962]
[1769657473856,69.35764428,122.82,122.77,2.55277962]
[1769657474354,71.9104239,122.82,122.76,2.55277962]
[1769657474551,69.35764428,122.82,122.77,2.55277962]
[1769657476256,71.9104239,122.82,122.76,9.89527962]
[1769657476758,69.35764428,122.82,122.76,9.89527962]
[1769657477260,69.35764428,122.84,122.79,2.55277962]
[1769657477554,69.35764428,122.86,122.82,2.55277962]
[1769657478663,69.35764428,122.89,122.84,2.55277962]
[1769657479057,69.35764428,122.89,122.83,2.55277962]
[1769657481055,2.55277962,122.88,122.81,325.26]
[1769657481363,69.35764428,122.88,122.82,2.55277962]
[1769657481563,69.35764428,122.88,122.83,2.55277962]
[1769657484168,114.0649,122.93,122.78,114.1985]
[1769657484169,71.9104239,122.86,122.8,7.3401]
[1769657484466,71.9104239,122.84,122.78,327.71277962]
[1769657484866,69.35764428,122.82,122.78,7.3409]
[1769657488565,69.35764428,122.82,122.76,7.3423]
[1769657488765,69.35764428,122.82,122.75,325.14]
[1769657490465,69.35764428,122.79,122.69,228.5532]
[1769657490762,69.35764428,122.79,122.7,325.14]
[1769657491164,69.35764428,122.79,122.72,114.2563]
[1769657491771,69.35764428,122.83,122.76,7.3424]
[1769657491976,69.35764428,122.83,122.76,325.16]
[1769657492374,76.188025,122.88,122.76,446.20698072]
[1769657492671,76.188025,122.86,122.75,114.2258]
[1769657492973,76.188025,122.86,122.76,252.3]
[1769657493768,83.524825,122.86,122.77,7.342]
[1769657495572,69.35764428,122.86,122.76,366.5179]
[1769657495875,69.35764428,122.86,122.76,373.34828072]
[1769657496263,69.35764428,122.86,122.77,114.2086]
[1769657497379,69.35764428,122.86,122.8,7.3403]
[1769657498074,76.188025,122.86,122.78,7.341]
[1769657499077,69.35764428,122.86,122.77,439.366]
[1769657501169,76.188025,122.86,122.78,7.341]
[1769657503671,76.188025,122.86,122.79,7.3407]
[1769657503873,69.35764428,122.86,122.79,7.3407]
[1769657505486,21.68131948,122.88,122.72,114.2573]
[1769657505487,30.48444663,122.82,122.72,114.2573]
[1769657505689,30.48444663,122.8,122.71,325.14]
[1769657505993,30.48444663,122.78,122.71,325.14]
[1769657506883,30.48444663,122.78,122.71,366.11743753]
[1769657507288,30.48444663,122.78,122.71,373.46263753]
[1769657507788,30.48444663,122.78,122.72,43.52975312]
[1769657507991,33.03676222,122.78,122.72,43.52975312]
[1769657509088,2.55231559,122.77,122.72,40.97743753]
[1769657509289,2.55231559,122.77,122.72,48.32233753]
[1769657509486,2.55231559,122.79,122.72,43.52975312]
[1769657509682,30.3432283,122.8,122.72,40.97743753]
[1769657510293,30.3432283,122.8,122.73,7.3443]
[1769657510698,30.3432283,122.8,122.73,48.32173753]
[1769657511891,30.3432283,122.8,122.73,40.97743753]
[1769657512292,37.17794114,122.8,122.73,40.97743753]
[1769657514800,37.17794114,122.8,122.73,48.32183753]
[1769657514998,37.17794114,122.8,122.73,40.97743753]
[1769657515999,37.17794114,122.8,122.72,7.3446]
[1769657517302,37.17794114,122.8,122.72,46.78658116]
[1769657519002,37.17794114,122.8,122.73,7.3445]
[1769657520705,28.12482431,122.77,122.71,7.3451]
[1769657521101,28.12482431,122.77,122.72,7.3451]
[1769657522909,28.12482431,122.77,122.71,7.3457]
[1769657523400,28.12482431,122.77,122.7,39.44198116]
[1769657523804,27.57761988,122.76,122.7,39.44198116]